Cogmind - Beta 12 X6 @@@ ROGUE MODE // 2023.02.20 @ 23:34:49 // Winter2019/RPGLIKE Player: ArabianSandBoa Result: Destroyed by P-60 Hacker with Shock Rifle Performance ------------- Evolutions (4) 2000 Regions Visited (15) 3000 Robots Destroyed (810) 4050 Value Destroyed (35832) 35832 Prototype IDs (58) 1160 Alien Tech Used (0) 0 Bonus (28073) 28073 TOTAL SCORE: 74115 Bonus ------- Triggered High Security 2000 High Alert Combat Kills 27018 Follower Combat Kills 565 Entered Garrisons 200 Aligned with FarCom 300 Met Data Miner 300 Friendly Fire -2310 Cogmind --------- Core Integrity 0/600 Matter 157/300 Energy 156/620 System Corruption 8% Temperature Warm (144) Movement Treading (160) Location -6/Extension Parts ------- > --- POWER (3) -------- Antimatter Reactor Antimatter Reactor Light Antimatter Reactor > --- PROPULSION (4) --- Improved Medium Treads Improved Medium Treads Improved Medium Treads Improved Medium Treads > --- UTILITY (9) ------ Power Amplifier Weapon Cycler Phase Shifter Improved Heavy Armor Plating Medium Reactive Plating Thermal Shield Remote Force Field Deep Network Scanner > --- WEAPON (5) ------- Neutron Cannon XL Autogun Array > --- INVENTORY (5) ---- Advanced Energy Well (0) Matter Compressor (0) Encrypted Comm Array Advanced Particle Charger Kinecellerator Peak State ------------ > --- POWER ------------ Antimatter Reactor Antimatter Reactor Light Antimatter Reactor > --- PROPULSION ------- Improved Medium Treads Improved Medium Treads Improved Medium Treads Improved Medium Treads > --- UTILITY ---------- Modified TNC Advanced Particle Charger Weapon Cycler Improved Heavy Armor Plating Medium Reactive Plating Thermal Shield Remote Force Field Deep Network Scanner > --- WEAPON ----------- Neutron Cannon XL Autogun Array > --- INVENTORY -------- Protomatter Advanced Energy Well Matter Compressor Encrypted Comm Array Kinecellerator [Rating: 138] Favorites ----------- Power Light Angular Momentum Engine Engine Light Angular Momentum Engine Power Core Micro Nuclear Core Reactor Antimatter Reactor Propulsion Improved Treads Treads Improved Treads Flight Unit Improved Flight Unit Utility Kinecellerator Device Kinecellerator Storage Advanced Energy Well Processor Modified TNC Hackware Deep Network Scanner Protection Medium Armor Plating Weapon XL Autogun Array Energy Gun Shock Rifle Energy Cannon Neutron Cannon Ballistic Gun XL Autogun Array Ballistic Cannon Improved Light Cannon Special Weapon Remote Datajack Build | -11 -10 -10 -9 -9 -9 -8 -8 -8 -8 -7 -7 -7 -6 -6 -6 ------- Run | Jun Mat Min Mat Min Exi Min Mat Gar Mat Fac Low Dat Pro Fac Ext Slots Evolved 17 | 3 6 . 3 . . . 2 . 1 . . . . 2 . Power 2 | . . . 1 . . . 1 . . . . . . . . Propulsion 3 | . 3 . . . . . . . . . . . . . . Utility 8 | 2 1 . 2 . . . 1 . 1 . . . . 1 . Weapon 4 | 1 2 . . . . . . . . . . . . 1 . Parts Attached 144 | 6 14 3 22 12 2 3 18 6 4 6 4 12 4 23 5 Power 14 | 1 . 1 4 1 . 1 1 1 . . . 2 . 2 . Engine 10 | 1 . 1 4 1 . 1 1 1 . . . . . . . Core 1 | . . . . . . . . . . . . . . 1 . Reactor 3 | . . . . . . . . . . . . 2 . 1 . Propulsion 27 | 1 4 . 2 3 . 1 7 . 1 . . . . 7 1 Treads 24 | 1 4 . 1 3 . 1 6 . 1 . . . . 6 1 Leg . | . . . . . . . . . . . . . . . . Wheel . | . . . . . . . . . . . . . . . . Hover . | . . . . . . . . . . . . . . . . Flight 3 | . . . 1 . . . 1 . . . . . . 1 . Utility 61 | 2 5 2 5 4 1 1 8 3 3 4 3 7 2 7 4 Device 30 | 2 . 2 1 3 . . 3 2 1 3 2 4 1 3 3 Storage 2 | . . . . . . . . . . . . 1 1 . . Processor 9 | . 1 . 1 . 1 . 2 1 1 . 1 . . 1 . Hackware 6 | . 1 . 1 . . . 1 . 1 . . 1 . 1 . Protection 14 | . 3 . 2 1 . 1 2 . . 1 . 1 . 2 1 Artifact . | . . . . . . . . . . . . . . . . Weapon 42 | 2 5 . 11 4 1 . 2 2 . 2 1 3 2 7 . Energy Gun 15 | . 2 . 7 4 . . 1 . . 1 . . . . . Energy Cannon 7 | . . . 1 . . . . . . . . 1 1 4 . Ballistic Gun 18 | 2 3 . 2 . 1 . 1 1 . 1 1 2 1 3 . Ballistic Cannon 1 | . . . 1 . . . . . . . . . . . . Launcher . | . . . . . . . . . . . . . . . . Special Weapon 1 | . . . . . . . . 1 . . . . . . . Impact Weapon . | . . . . . . . . . . . . . . . . Slashing Weapon . | . . . . . . . . . . . . . . . . Piercing Weapon . | . . . . . . . . . . . . . . . . Special Melee Weapon . | . . . . . . . . . . . . . . . . Unidentified Prototypes 14 | . . 1 6 . . . 2 . . 1 . 2 . 2 . Parts Lost . | . . . . . . . . . . . . . . . . Power . | . . . . . . . . . . . . . . . . Propulsion . | . . . . . . . . . . . . . . . . Utility . | . . . . . . . . . . . . . . . . Weapon . | . . . . . . . . . . . . . . . . Highest Loss Streak . | . . . . . . . . . . . . . . . . To Critical Strikes . | . . . . . . . . . . . . . . . . Average Slot Usage (%) 87 | . 92 100 99 99 89 80 79 82 83 84 83 81 83 83 79 Engine 10 | . 11 7 12 12 12 12 13 15 15 15 15 11 5 1 . Reactor 2 | . . . . . . . . . . . . 3 10 11 14 Treads 21 | . 12 30 25 24 25 25 22 22 21 21 21 21 21 19 19 Device 21 | . 16 14 18 23 21 18 18 26 26 24 21 22 25 24 19 Processor 7 | . 6 7 6 1 3 6 8 8 13 15 15 12 5 5 3 Hackware 2 | . 5 7 3 . . . . . . . . 1 5 5 4 Protection 5 | . 8 . 5 11 12 11 8 1 . 1 5 4 5 5 8 Energy Gun 3 | . 3 7 7 24 11 . . . . . . . . . . Ballistic Gun 8 | . 27 23 11 . 3 6 5 4 5 5 4 2 4 4 4 Naked Turns . | . . . . . . . . . . . . . . . . Heaviest Build 118 | 11 20 20 47 51 53 53 66 66 56 76 78 97 97 117 118 Greatest Support 120 | 20 92 92 92 97 97 97 96 95 95 94 94 94 94 120 120 Greatest Overweight (x) 9 | 1 . . 9 1 . . 1 . . . . 1 1 1 . Average Overweight (x) . | . . . . . . . . . . . . . . . . Largest Inventory Capacity 5 | 1 1 1 2 2 2 2 3 3 3 5 5 5 5 5 5 Average Capacity 3 | . 1 1 1 2 2 2 2 3 3 4 5 5 5 5 5 Most Carried 5 | 1 1 1 2 2 2 2 3 3 3 5 5 5 5 5 5 Average Carried 3 | . . 1 1 1 1 2 2 2 2 4 4 4 5 4 4 Final Capacity 5 | 1 1 1 2 2 2 2 3 3 3 5 5 5 5 5 5 Final Carried 5 | . 1 1 2 2 2 2 3 3 3 5 5 5 5 5 5 Class Distribution -------------------- 24% | Scavenger-Gunner 20% | Hacker-Gunner 10% | Tank 8% | Hacker-Skirmisher 8% | Hacker-Tank 8% | Skirmisher 6% | Scavenger-Tank 4% | Mutant 3% | Hacker-Mutant 3% | Gunner Dominant Class ---------------- Hacker-Gunner | -10/Materials Hacker-Skirmisher | -10/Mines Hacker-Skirmisher | -9/Materials Tank | -9/Mines Gunner | -9/Exiles Skirmisher | -8/Mines Scavenger-Tank | -8/Materials Scavenger-Gunner | -8/Garrison Scavenger-Gunner | -8/Materials Scavenger-Gunner | -7/Factory Scavenger-Gunner | -7/Lower Caves Hacker-Gunner | -7/Data Miner Hacker-Gunner | -6/Proximity Caves Hacker-Tank | -6/Factory Hacker-Tank | -6/Extension Resources | -11 -10 -10 -9 -9 -9 -8 -8 -8 -8 -7 -7 -7 -6 -6 -6 ----------- Run | Jun Mat Min Mat Min Exi Min Mat Gar Mat Fac Low Dat Pro Fac Ext Matter Collected 26118 | 332 1296 192 2329 117 . 440 2475 1897 2317 4699 547 248 668 4744 3817 Remotely 2973 | . . . . . . . . . . 2973 . . . . . Salvage Created 39535 | 176 1569 77 3072 336 . 462 3790 2037 4174 8028 823 418 1432 7440 5701 Parts 2047 | 13 106 6 198 12 . 42 213 110 188 395 35 18 72 399 240 Haulers Intercepted 23 | . 2 . 6 . . . 6 . 5 1 . . . 3 . Recyclers Shooed 3 | . 1 . 1 . . . . . . . . . . 1 . Parts Field Recycled . | . . . . . . . . . . . . . . . . Retrieved Matter . | . . . . . . . . . . . . . . . . Parts Self-Destructed 91 | . . . . . . . . . . . 33 . 58 . . Prevented . | . . . . . . . . . . . . . . . . Kills | -11 -10 -10 -9 -9 -9 -8 -8 -8 -8 -7 -7 -7 -6 -6 -6 ------- Run | Jun Mat Min Mat Min Exi Min Mat Gar Mat Fac Low Dat Pro Fac Ext Combat Hostiles Destroyed 717 | . 34 1 51 1 . 17 55 37 78 155 15 4 25 132 112 Melee 3 | . . . . . . . . . . . 2 . . 1 . Guns 693 | . 34 1 34 1 . 17 55 37 78 153 13 4 25 131 110 Cannons 19 | . . . 17 . . . . . . . . . . . 2 AOE 2 | . . . . . . . . . . 2 . . . . . Classes Destroyed 23 | 2 7 1 4 . . . 4 1 . . 2 . . 1 1 Worker 33 | . 3 2 17 . . 1 2 . 1 1 . . . 6 . Builder 17 | . 2 . 5 3 . . 5 . . . . . . 2 . Tunneler 13 | 4 1 1 1 1 . . 1 . 1 . . . . 3 . Hauler 23 | . 2 . 6 . . . 6 . 5 1 . . . 3 . Recycler 18 | 1 2 . 4 2 . . 4 . 3 . . . . 2 . Minesweeper 2 | . . . . . . . . . . . 2 . . . . Mechanic 32 | . . . 2 . . . 1 . 5 15 . . . 3 6 Operator 12 | . 3 . 2 . . . 2 . 1 3 . . . 1 . Watcher 26 | . 3 . 5 . . . 3 . 3 5 . . . 5 2 Swarmer 68 | . 9 . 8 . . 8 4 8 6 8 . . 9 8 . Saboteur 11 | . . . . . . . . . . . . . . 4 7 Grunt 322 | . 25 . 29 . . 8 26 13 40 60 12 . 9 55 45 Brawler 45 | . . . 2 . . 1 5 4 5 5 . . 4 12 7 Duelist 44 | . . . 3 . . . 2 . 10 15 1 . . 8 5 Protector 33 | . . . . . . . 1 . 5 11 . . . 7 9 Sentry 63 | . . . 9 1 . . 8 4 9 15 . . 2 11 4 Demolisher 2 | . . 1 . . . . 1 . . . . . . . . Specialist 10 | . . . . . . . 2 3 3 . . . . . 2 Hunter 70 | . . . . . . . 5 2 3 32 1 . . 13 14 Programmer 41 | . . . . . . . . 3 . 8 . . 1 13 16 Heavy 3 | . . . . . . . 1 . . 1 . . . 1 . Behemoth 2 | . . . . . . . . . . . . . . . 2 Enhanced Grunt 4 | . . . . . . . . . . . . 4 . . . Master Thief 1 | . . . . . . . . . . . 1 . . . . Thug 1 | . . . . . . . . . . . . . . . 1 Savage 1 | . . . . . . . . . . . . . . . 1 Butcher 1 | . . . . . . . . . . . . . . . 1 Best Kill Streak 58 | 3 5 3 11 2 . 7 18 7 41 58 4 5 6 49 27 Combat Bots Only 47 | . 5 1 8 1 . 7 15 7 38 44 4 4 6 47 26 Max Kills in Single Turn 3 | 1 1 1 2 2 . 2 3 2 3 3 1 1 2 3 3 Gunslinging . | . . . . . . . . . . . . . . . . Exploded 2 | . . . . . . . . . . 2 . . . . . Melee 1 | . . . . . . . . . . . 1 . . 1 . Uniques/NPCs Destroyed 2 | . . . . 1 . . . . . . . 1 . . . YI-UF0 (-9/Mines) Data Miner (-7/Data Miner) Combat | -11 -10 -10 -9 -9 -9 -8 -8 -8 -8 -7 -7 -7 -6 -6 -6 -------- Run | Jun Mat Min Mat Min Exi Min Mat Gar Mat Fac Low Dat Pro Fac Ext Damage Taken 10579 | . 1065 349 832 50 . 79 669 112 669 2273 85 . 110 1330 2956 Core 7547 | . 779 277 622 45 . 56 456 88 520 1798 53 . 85 886 1882 Absorbed by Shields 3442 | . . . 308 18 . . 156 52 200 188 76 . 105 1059 1280 Redirected to Core 6678 | . 609 250 532 17 . 42 456 67 496 1591 53 . 66 810 1689 Core Remaining (%) 88 | 100 . 45 . . . 100 . . 100 . . . 95 . . Volleys Fired 1924 | 12 167 33 253 18 . 26 153 127 157 331 22 12 52 323 238 Largest 4 | 2 3 3 4 4 . 1 1 1 1 1 1 1 1 2 2 Hottest 205 | 40 85 69 184 205 . 60 60 60 60 60 60 60 60 150 150 Shots Fired 2755 | 24 400 69 742 72 . 26 153 127 157 332 23 12 52 326 240 Gun 2541 | 24 400 69 545 72 . 26 153 123 157 332 23 12 52 322 231 Cannon 210 | . . . 197 . . . . . . . . . . 4 9 Launcher . | . . . . . . . . . . . . . . . . Special 4 | . . . . . . . . 4 . . . . . . . Kinetic 2530 | 24 382 54 639 . . 26 153 123 157 332 23 12 52 322 231 Thermal 13 | . . . . . . . . . . . . . . 4 9 Explosive . | . . . . . . . . . . . . . . . . Electromagnetic 208 | . 18 15 103 72 . . . . . . . . . . . Robot Hit Streak 69 | 8 23 10 49 22 . 20 23 36 27 58 20 15 35 40 69 Robot Miss Streak 12 | 3 4 1 2 1 . 2 3 4 5 5 2 2 4 12 6 Penetration Max . | . . . . . . . . . . . . . . . . Secondary Targets 2 | . 2 . . . . . . . . . . . . . . Max Gunslinging Chain 1 | . 1 . . . . . . . . . . . . . . Shots Hit Robots 1639 | 15 165 22 279 26 . 20 105 75 110 264 19 12 46 254 227 Core Hits 1471 | 6 68 7 121 11 . 21 92 67 126 306 21 17 51 285 272 Critical Kills 2 | . 1 . 1 . . . . . . . . . . . . Critical Parts Destroyed 1 | . 1 . . . . . . . . . . . . . . Critical Strikes 10 | . 2 . 5 3 . . . . . . . . . . . Destroy 3 | . 2 . 1 . . . . . . . . . . . . Blast 3 | . . . 3 . . . . . . . . . . . . Corrupt 4 | . . . 1 3 . . . . . . . . . . . Melee Attacks . | . . . . . . . . . . . . . . . . Impact . | . . . . . . . . . . . . . . . . Slashing . | . . . . . . . . . . . . . . . . Piercing . | . . . . . . . . . . . . . . . . Sneak Attacks . | . . . . . . . . . . . . . . . . Combat Hostiles . | . . . . . . . . . . . . . . . . Follow-up Attacks . | . . . . . . . . . . . . . . . . Damage Inflicted 106331 | 195 2384 340 5494 638 . 1532 7886 5272 9778 22904 1289 1059 3742 23772 20046 Guns 103178 | 195 2289 340 3881 459 . 1532 7739 5272 9488 22415 1245 1059 3742 23577 19945 Cannons 1399 | . . . 1298 . . . . . . . . . . . 101 Explosions 1704 | . 93 . 311 179 . . 147 . 290 489 . . . 195 . Melee . | . . . . . . . . . . . . . . . . Ramming 50 | . 2 . 4 . . . . . . . 44 . . . . Kinetic 103534 | 195 2146 312 4867 . . 1532 7739 5272 9488 22415 1245 1059 3742 23577 19945 Thermal 1161 | . 35 . 238 179 . . 48 . 290 133 . . . 137 101 Explosive 644 | . 58 . 73 . . . 99 . . 356 . . . 58 . Electromagnetic 942 | . 143 28 312 459 . . . . . . . . . . . Impact . | . . . . . . . . . . . . . . . . Slashing . | . . . . . . . . . . . . . . . . Piercing . | . . . . . . . . . . . . . . . . Highest Corruption 8 | . 1 1 . . . . . 2 2 6 6 6 6 3 8 Average Corruption 3 | . 1 1 . . . . . 1 2 3 6 6 6 2 3 Corruption Purged . | . . . . . . . . . . . . . . . . Corruption Blocked . | . . . . . . . . . . . . . . . . Effects 217 | . 10 8 . . . . . 11 19 33 33 8 55 13 27 Message Errors 60 | . 5 2 . . . . . 4 3 8 12 1 14 3 8 Matter Fused 43 | . 1 . . . . . . 2 6 11 2 1 13 2 5 Heat Flow Errors 28 | . 2 2 . . . . . 2 1 3 5 4 5 2 2 Energy Discharges 27 | . 2 4 . . . . . 1 1 3 3 . 10 1 2 Data Loss (minor) 33 | . . . . . . . . 2 3 6 4 1 8 3 6 Data Loss (major) 9 | . . . . . . . . . 1 1 4 1 1 . 1 Misfires 10 | . . . . . . . . . 2 1 2 . 1 2 2 Alerts 2 | . . . . . . . . . . . . . 2 . . Weapon Failures 5 | . . . . . . . . . 2 . 1 . 1 . 1 Overload Shots . | . . . . . . . . . . . . . . . . Overflow Damage 352 | . 16 . 161 32 . . 8 . . 63 . . . 72 . Projectiles 30 | . . . 30 . . . . . . . . . . . . Explosions 322 | . 16 . 131 32 . . 8 . . 63 . . . 72 . Melee . | . . . . . . . . . . . . . . . . Knockbacks 8 | . . . 8 . . . . . . . . . . . . Impact . | . . . . . . . . . . . . . . . . Kinetic 8 | . . . 8 . . . . . . . . . . . . Secondary . | . . . . . . . . . . . . . . . . Self-Inflicted Damage 547 | . 39 . 64 30 . . . . 202 66 . . . 146 . Shots 10 | . 1 . 2 1 . . . . 2 1 . . . 3 . Rammed 8 | . . . 1 1 . . . . . . 6 . . . . Targets Rammed 11 | . 1 . 1 1 . . . . . . 8 . . . . Kicked . | . . . . . . . . . . . . . . . . Crushed 3 | . 1 . . . . . . . . . 2 . . . . Highest Temperature 476 | . 230 282 312 131 . 74 326 236 360 476 259 217 248 263 380 Average Temperature 69 | . 44 47 79 49 . 37 68 56 77 76 60 68 62 55 101 Received Heat Transfer 2370 | . 420 . 224 . . 36 189 18 193 496 67 . 10 299 418 Effects 10 | . . . 5 . . . . . 2 2 . . . . 1 Shutdowns 2 | . . . . . . . . . 1 1 . . . . . Energy Bleed 2 | . . . . . . . . . . 1 . . . . 1 Interference 5 | . . . 5 . . . . . . . . . . . . Damage (minor) 1 | . . . . . . . . . 1 . . . . . . Siege Activations . | . . . . . . . . . . . . . . . . Robots Corrupted . | . . . . . . . . . . . . . . . . Combat Hostiles . | . . . . . . . . . . . . . . . . Parts Fried 5 | . . . 2 3 . . . . . . . . . . . Impact Corruptions . | . . . . . . . . . . . . . . . . Robots Melted . | . . . . . . . . . . . . . . . . Combat Hostiles . | . . . . . . . . . . . . . . . . Parts Melted 6 | . 1 . . 3 . . . . . . . . . 1 1 Heat Transferred 1000 | . 50 . 250 150 . . 50 . 250 100 . . . 150 . Parts Sabotaged 3 | . . . . . . . . . . . . . . 1 2 Parts Stolen 2 | . . . . . . . . . . . 2 . . . . Parts Stripped . | . . . . . . . . . . . . . . . . Power Chain Reactions 5 | . . . 2 3 . . . . . . . . . . . Missiles Intercepted . | . . . . . . . . . . . . . . . . Alert | -11 -10 -10 -9 -9 -9 -8 -8 -8 -8 -7 -7 -7 -6 -6 -6 ------- Run | Jun Mat Min Mat Min Exi Min Mat Gar Mat Fac Low Dat Pro Fac Ext Peak Influence 7197 | 25 1006 423 1743 775 . 410 2539 3352 3882 7197 . . . 5378 5950 Initial 2634 | . 16 369 51 679 . . 53 1595 1634 1766 . . . 10 2634 Average 1952 | 12 543 261 1091 615 . 170 1374 2548 2857 5212 . . . 2605 4142 Maximum Alert Level 5 | . 3 2 5 3 . 2 5 5 5 5 . . . 5 5 Low Security (%) 8 | 100 9 32 4 . . 49 2 . . . . . . 6 . Level 1 9 | . 17 48 8 . . 35 15 . . . . . . . . Level 2 17 | . 46 19 7 75 . 14 15 . . . . . . 15 . Level 3 8 | . 25 . 17 24 . . 9 . . . . . . 6 . Level 4 11 | . . . 49 . . . 13 . 12 . . . . 11 . Level 5 18 | . . . 12 . . . 44 99 20 10 . . . 16 5 High Security 24 | . . . . . . . . . 66 89 . . . 43 94 Max Security . | . . . . . . . . . . . . . . . . Sterilizations 5 | . . . 1 . . . 1 . 1 1 . . . 1 . Squads Dispatched 160 | . 12 . 13 . . 1 16 . 17 35 . . . 34 32 Investigation 39 | . 9 . 10 . . 1 6 . 5 . . . . 8 . Extermination 2 | . . . . . . . . . . . . . . 2 . Reinforcement 12 | . 3 . 2 . . . 3 . 1 . . . . 3 . Assault 98 | . . . 1 . . . 4 . 11 32 . . . 18 32 Garrison 9 | . . . . . . . 3 . . 3 . . . 3 . Intercept . | . . . . . . . . . . . . . . . . Searches Triggered . | . . . . . . . . . . . . . . . . Construction Impeded . | . . . . . . . . . . . . . . . . Haulers Reinforced . | . . . . . . . . . . . . . . . . Active Scanning Responses . | . . . . . . . . . . . . . . . . Cargo Convoy Interrupts . | . . . . . . . . . . . . . . . . Stealth | -11 -10 -10 -9 -9 -9 -8 -8 -8 -8 -7 -7 -7 -6 -6 -6 --------- Run | Jun Mat Min Mat Min Exi Min Mat Gar Mat Fac Low Dat Pro Fac Ext Distress Signals 14 | . 3 . 2 . . . 2 . 1 3 . . . 1 2 Communications Jammed 43 | . . . . . . . . . . . . . . 43 . Distress Signals 42 | . . . . . . . . . . . . . . 42 . Times Spotted 957 | . 45 2 64 1 . 16 67 37 97 221 14 4 21 159 209 Peak Tracking Total 21 | . 4 2 6 1 . 6 7 4 11 17 4 4 4 12 21 Tactical Retreats 14 | . 3 . 1 . . . 2 . 1 1 . . . 1 5 Traps | -11 -10 -10 -9 -9 -9 -8 -8 -8 -8 -7 -7 -7 -6 -6 -6 ------- Run | Jun Mat Min Mat Min Exi Min Mat Gar Mat Fac Low Dat Pro Fac Ext Traps Triggered 19 | . 2 . 1 3 . . . 5 1 5 . . . 2 . Indirectly . | . . . . . . . . . . . . . . . . Trap Hack Attempts . | . . . . . . . . . . . . . . . . Triggered . | . . . . . . . . . . . . . . . . Disarmed . | . . . . . . . . . . . . . . . . Reprogrammed 6 | . . . 6 . . . . . . . . . . . . Reused . | . . . . . . . . . . . . . . . . Traps Extracted . | . . . . . . . . . . . . . . . . Installed . | . . . . . . . . . . . . . . . . Triggered . | . . . . . . . . . . . . . . . . Machines | -11 -10 -10 -9 -9 -9 -8 -8 -8 -8 -7 -7 -7 -6 -6 -6 ---------- Run | Jun Mat Min Mat Min Exi Min Mat Gar Mat Fac Low Dat Pro Fac Ext Machines Disabled 404 | . 20 4 57 10 . 3 50 21 37 87 . 1 . 104 10 Max in Single Turn 11 | . 2 1 3 2 . 1 3 3 3 10 . 1 . 11 2 Garrison Access 3 | . . . . . . . . . . 1 . . . 2 . Garrison Relay 4 | . . . . . . . . 4 . . . . . . . Machines Repaired 1 | . 1 . . . . . . . . . . . . . . Machines Sabotaged . | . . . . . . . . . . . . . . . . Overloaded Fab Kills . | . . . . . . . . . . . . . . . . Hacking | -11 -10 -10 -9 -9 -9 -8 -8 -8 -8 -7 -7 -7 -6 -6 -6 --------- Run | Jun Mat Min Mat Min Exi Min Mat Gar Mat Fac Low Dat Pro Fac Ext Machines Accessed 56 | . 8 . 12 1 1 1 8 4 5 . . 4 . 11 1 Terminals 36 | . 5 . 9 . . 1 6 4 3 . . . . 7 1 Fabricators 2 | . . . . . . . . . . . . . . 2 . Repair Stations 1 | . 1 . . . . . . . . . . . . . . Recycling Units 5 | . 2 . 2 . . . . . . . . . . 1 . Scanalyzers 5 | . . . 1 . . . 1 . 2 . . . . 1 . Garrison Access 1 | . . . . . . . 1 . . . . . . . . Total Hacks 211 | . 21 . 45 1 1 5 40 13 17 . . 28 . 38 2 Successful 125 | . 15 . 22 1 1 2 21 4 10 . . 28 . 20 1 Failed 85 | . 6 . 23 . . 3 18 9 7 . . . . 18 1 Catastrophic 8 | . . . 1 . . . 2 2 1 . . . . 2 . Database Lockouts 1 | . . . . . . . 1 . . . . . . . . Manual 69 | . 15 . 12 . 1 1 9 6 11 . . 1 . 13 . Terminals 141 | . 14 . 35 . . 5 36 13 15 . . . . 21 2 Fabricators 8 | . . . . . . . . . . . . . . 8 . Repair Stations 4 | . 4 . . . . . . . . . . . . . . Recycling Units 18 | . 3 . 9 . . . . . . . . . . 6 . Scanalyzers 7 | . . . 1 . . . 1 . 2 . . . . 3 . Garrison Access 3 | . . . . . . . 3 . . . . . . . . Terminal Hacks 89 | . 5 . 15 1 1 1 16 4 6 . . 28 . 11 1 Record 12 | . . . . . . . 1 . . . . 11 . . . Part Schematic 12 | . . . . . . . . . . . . 11 . 1 . Robot Schematic 3 | . . . . . . . . . . . . 3 . . . Robot Analysis 3 | . 2 . . . . . 1 . . . . . . . . Prototype ID Bank 9 | . . . 2 . . . 4 . . . . 3 . . . Open Door 3 | . . . . 1 . . . . . . . . . 1 1 Branch Access Points 3 | . . . 1 . . . . . 1 . . . . 1 . Emergency Access Points 6 | . . . . . . . 4 1 1 . . . . . . Garrison Index 1 | . . . . . . . . . . . . . . 1 . Alert Level 1 | . . . 1 . . . . . . . . . . . . Unreport Threat 6 | . . . 3 . . . . . 3 . . . . . . Locate Traps 2 | . 1 . . . . . 1 . . . . . . . . Reprogram Traps 1 | . . . 1 . . . . . . . . . . . . Dispatch Records 1 | . . . . . . 1 . . . . . . . . . Security Status 1 | . . . . . . . . . . . . . . 1 . Transport Status 1 | . . . . . . . 1 . . . . . . . . Hauler Manifests 6 | . . . 2 . . . 3 . . . . . . 1 . Registered Components 2 | . . . 1 . . . . . . . . . . 1 . Registered Prototypes 1 | . . . . . . . . . . . . . . 1 . Zone Layout 11 | . 2 . 4 . . . 1 . 1 . . . . 3 . Garrison Registry 1 | . . . . . . . . 1 . . . . . . . Patrol Navigation 1 | . . . . . . . . 1 . . . . . . . Security Stations 1 | . . . . . . . . 1 . . . . . . . EX-Prototype ID Bank 1 | . . . . . 1 . . . . . . . . . . Fabricator Hacks . | . . . . . . . . . . . . . . . . Repair Station Hacks 2 | . 2 . . . . . . . . . . . . . . Refit 2 | . 2 . . . . . . . . . . . . . . Recycling Unit Hacks 5 | . 1 . 2 . . . . . . . . . . 2 . Report Inventory 3 | . 1 . 1 . . . . . . . . . . 1 . Retrieve Matter 2 | . . . 1 . . . . . . . . . . 1 . Scanalyzer 2 | . . . . . . . . . . . . . . 2 . Insert Component 1 | . . . . . . . . . . . . . . 1 . Analyze 1 | . . . . . . . . . . . . . . 1 . Garrison Access Hacks 1 | . . . . . . . 1 . . . . . . . . Unlock Access 1 | . . . . . . . 1 . . . . . . . . Unauthorized Hacks 26 | . 7 . 5 . . 1 4 . 4 . . . . 5 . Terminals 15 | . 5 . 4 . . 1 3 . 2 . . . . . . Botnet 1 | . . . . . . . . . 1 . . . . . . Sabotage 9 | . 5 . 4 . . . . . . . . . . . . Search 5 | . . . . . . 1 3 . 1 . . . . . . Fabricators 4 | . . . . . . . . . . . . . . 4 . Report 1 | . . . . . . . . . . . . . . 1 . Fabnet 2 | . . . . . . . . . . . . . . 2 . Recompile 1 | . . . . . . . . . . . . . . 1 . Repair Stations . | . . . . . . . . . . . . . . . . Recycling Units 3 | . 2 . . . . . . . . . . . . 1 . Tunnel 3 | . 2 . . . . . . . . . . . . 1 . Scanalyzers 4 | . . . 1 . . . 1 . 2 . . . . . . Extract 4 | . . . 1 . . . 1 . 2 . . . . . . Garrison Access . | . . . . . . . . . . . . . . . . Data Cores Recovered 1 | . . . . . . . 1 . . . . . . . . Used . | . . . . . . . . . . . . . . . . Hacking Detections 35 | . 2 . 8 . . 1 7 4 3 . . . . 10 . Full Trace Events 18 | . 1 . 5 . . . 2 3 1 . . . . 6 . Feedback Events 2 | . 1 . . . . . . 1 . . . . . . . Corruption 2 | . 1 . . . . . . 1 . . . . . . . Feedback Blocked . | . . . . . . . . . . . . . . . . Robot Schematics Acquired 3 | . . . . . . . . . . . . 3 . . . Robots Built . | . . . . . . . . . . . . . . . . Authchips . | . . . . . . . . . . . . . . . . Time . | . . . . . . . . . . . . . . . . Total Robot Build Rating . | . . . . . . . . . . . . . . . . Part Schematics Acquired 28 | . . . 3 . . . 2 . 10 . . 11 . 2 . Parts Built . | . . . . . . . . . . . . . . . . Authchips . | . . . . . . . . . . . . . . . . Time . | . . . . . . . . . . . . . . . . Total Part Build Rating . | . . . . . . . . . . . . . . . . Parts Repaired . | . . . . . . . . . . . . . . . . Time . | . . . . . . . . . . . . . . . . Parts Recycled . | . . . . . . . . . . . . . . . . Recycled Matter . | . . . . . . . . . . . . . . . . Retrieved Matter . | . . . . . . . . . . . . . . . . Retrieved Components . | . . . . . . . . . . . . . . . . Parts Scanalyzed 1 | . . . . . . . . . . . . . . 1 . Part Schematics Acquired 1 | . . . . . . . . . . . . . . 1 . Parts Damaged . | . . . . . . . . . . . . . . . . Bothacking | -11 -10 -10 -9 -9 -9 -8 -8 -8 -8 -7 -7 -7 -6 -6 -6 ------------ Run | Jun Mat Min Mat Min Exi Min Mat Gar Mat Fac Low Dat Pro Fac Ext Used RIF Installer . | . . . . . . . . . . . . . . . . Robots Hacked . | . . . . . . . . . . . . . . . . Non-combat . | . . . . . . . . . . . . . . . . Combat . | . . . . . . . . . . . . . . . . Robot Hacks Applied . | . . . . . . . . . . . . . . . . Relay Couplers Released 7 | . . . . . . . . 5 . . . . . 2 . Machine Destruction 7 | . . . . . . . . 5 . . . . . 2 . Fabnet Peak Effective % . | . . . . . . . . . . . . . . . . Robots Rewired 12 | . . . . . . . . 3 . . . . 2 . 7 Allies Hacked 1 | . . . . . . . . . . . . . . . 1 Hacks Repelled . | . . . . . . . . . . . . . . . . Allies | -11 -10 -10 -9 -9 -9 -8 -8 -8 -8 -7 -7 -7 -6 -6 -6 -------- Run | Jun Mat Min Mat Min Exi Min Mat Gar Mat Fac Low Dat Pro Fac Ext Total Allies 23 | . . . . 4 . . . 3 . . . . 2 . 14 Largest Group 10 | . . . . 4 4 3 3 3 3 . . . 2 2 10 Highest-Rated Group 285 | . . . . 71 71 40 40 72 72 . . . 58 58 285 Highest-Rated Ally 39 | . . . . 31 31 16 16 24 24 . . . 29 29 39 Total Orders 1 | . . . . . . . . . . . . . . 1 . ROAM 1 | . . . . . . . . . . . . . . 1 . Ally Attacks 133 | . . . . . . 6 25 4 4 . . . . 6 88 Total Damage 2609 | . . . . . . 38 269 42 109 . . . . 98 2053 Kills 23 | . . . . . . . 4 2 1 . . . . 1 15 Allies Corrupted . | . . . . . . . . . . . . . . . . Allies Melted . | . . . . . . . . . . . . . . . . Intel | -11 -10 -10 -9 -9 -9 -8 -8 -8 -8 -7 -7 -7 -6 -6 -6 ------- Run | Jun Mat Min Mat Min Exi Min Mat Gar Mat Fac Low Dat Pro Fac Ext Robot Analysis Total 3 | . 2 . . . . . 1 . . . . . . . . Derelict Logs Recovered 7 | . . 3 . 2 . . . . . . 1 . 1 . . Drone Launches . | . . . . . . . . . . . . . . . . Drone Recoveries . | . . . . . . . . . . . . . . . . Exploration | -11 -10 -10 -9 -9 -9 -8 -8 -8 -8 -7 -7 -7 -6 -6 -6 ------------- Run | Jun Mat Min Mat Min Exi Min Mat Gar Mat Fac Low Dat Pro Fac Ext Turns Passed 23665 | 128 2219 1177 2989 1273 430 1319 1645 1601 1343 2154 1171 356 2315 2609 936 Spaces Moved 11577 | 60 923 660 1085 723 262 758 849 906 725 1121 749 185 978 1276 317 Core 18 | 17 . . 1 . . . . . . . . . . . . Treads 11559 | 43 923 660 1084 723 262 758 849 906 725 1121 749 185 978 1276 317 Legs . | . . . . . . . . . . . . . . . . Wheels . | . . . . . . . . . . . . . . . . Hover . | . . . . . . . . . . . . . . . . Flight . | . . . . . . . . . . . . . . . . Fastest Speed 50 | 50 160 160 160 160 160 156 152 152 148 148 148 148 148 148 160 Average Speed 163 | 131 160 160 160 160 160 158 155 152 150 148 148 159 227 168 160 Slowest Speed 500 | 160 160 160 500 240 160 160 235 152 152 148 148 228 228 240 160 Overloaded Moves . | . . . . . . . . . . . . . . . . Propulsion Burnouts . | . . . . . . . . . . . . . . . . Robots Hopped . | . . . . . . . . . . . . . . . . Cave-ins Triggered . | . . . . . . . . . . . . . . . . Exploration Rate (%) 76 | 4 94 98 91 99 62 99 87 91 83 49 97 82 96 52 44 Regions Visited 15 Branch Regions 8 Pre-discovered Areas 5 | . 2 . . . . . . . . . 1 1 . 1 . Known Exits Taken 9 | . . . 1 . 1 1 1 . 1 1 1 . 1 1 . Unknown Exits Taken 5 | 1 1 1 . 1 . . . . . . . 1 . . . Scrap Searched 9 | . . 1 . 2 . 1 . . . . 2 . 3 . . Spaces Dug 373 | . . . . . . 21 25 . 75 44 8 . 8 192 . Terrain Destroyed 3113 | . 88 9 172 18 . 68 497 52 326 663 47 3 69 1007 94 Melee . | . . . . . . . . . . . . . . . . Projectile 1272 | . . . 24 . . 50 234 . 192 269 47 3 69 290 94 AOE 1841 | . 88 9 148 18 . 18 263 52 134 394 . . . 717 . Terrain Rammed . | . . . . . . . . . . . . . . . . Walls Destroyed . | . . . . . . . . . . . . . . . . Machines Disabled . | . . . . . . . . . . . . . . . . Actions | -11 -10 -10 -9 -9 -9 -8 -8 -8 -8 -7 -7 -7 -6 -6 -6 --------- Run | Jun Mat Min Mat Min Exi Min Mat Gar Mat Fac Low Dat Pro Fac Ext Total 15540 | 83 1312 727 1782 791 276 878 1180 1149 999 1669 810 251 1075 1782 776 Wait 1156 | 4 165 29 347 27 . 68 102 85 57 77 13 17 24 46 95 Move 11562 | 59 922 659 1084 722 261 757 848 905 724 1120 748 184 977 1275 317 Hop . | . . . . . . . . . . . . . . . . Pick Up 51 | 2 2 . 7 3 2 . 1 2 3 8 2 6 . 6 7 Fast Attach 116 | 4 11 1 20 10 2 3 18 5 4 5 1 8 4 16 4 Attach 10 | 2 . . 1 1 . . . 1 . . 1 2 . 2 . Detach 19 | . . . 2 1 1 . 3 1 1 1 1 3 . 3 2 Swap 18 | . 3 2 1 1 . . . . . 1 2 2 . 5 1 Drop 128 | . 7 3 20 7 7 4 12 7 5 11 . 12 4 21 8 Fire 1924 | 12 167 33 253 18 . 26 153 127 157 331 22 12 52 323 238 Melee . | . . . . . . . . . . . . . . . . Ram . | . . . . . . . . . . . . . . . . Kick . | . . . . . . . . . . . . . . . . Crush 11 | . 1 . 1 1 . . . . . . 8 . . . . Escape Stasis . | . . . . . . . . . . . . . . . . Rewire 20 | . . . . . . . . . . . . . 6 . 14 Trap . | . . . . . . . . . . . . . . . . Miscellaneous 525 | . 34 . 46 . 3 20 43 16 48 115 12 5 8 85 90 Route ------- -11/Junkyard -10/Materials (discovered 5 exits: *Mat x3 / [*Min x2]) -10/Mines (discovered 2 exits: *Mat x2) -9/Materials (discovered 3 exits: *Mat x2 / *Min) -9/Mines (discovered 3 exits: *Mat x2 / *Exi) -9/Exiles (discovered 2 exits: *Min x2) -8/Mines (discovered 2 exits: *Mat x2) -8/Materials (discovered 4 exits: *Fac x3 / Gar) -8/Garrison (discovered 4 exits: *Mat x4) -8/Materials (discovered 3 exits: *Fac x3) -7/Factory (discovered 3 exits: *Fac / *Sto / *Low) -7/Lower Caves (discovered 2 exits: *Low / *Dat) -7/Data Miner -6/Proximity Caves -6/Factory (discovered 6 exits: [*Fac x2] / *Low x2 / *Ext x2) -6/Extension (discovered 1 exit: [*Fac]) History --------- Turn | Location | Event 6 | -11/Junkyard | Discovered new exit (range 15) 9 | -11/Junkyard | Upgraded with Utility slot (x2) 9 | -11/Junkyard | Upgraded with Weapon slot (x1) 129 | -11/Junkyard | Entered Materials 305 | -10/Materials | Build established: Mutant 313 | -10/Materials | Discovered new exit (range 13) 558 | -10/Materials | Reached level 2 799 | -10/Materials | Core integrity fell below 50% 909 | -10/Materials | Upgraded with Weapon slot (x1) 956 | -10/Materials | Reached level 3 1063 | -10/Materials | Discovered new exit (range 12) 1155 | -10/Materials | Upgraded with Utility slot (x1) 1232 | -10/Materials | Discovered new exit (range 14) 1473 | -10/Materials | Build established: Hacker-Gunner 1639 | -10/Materials | Reached level 4 1652 | -10/Materials | Upgraded with Weapon slot (x1) 1652 | -10/Materials | Upgraded with Propulsion slot (x1) 1746 | -10/Materials | Discovered new exit (range 11) 1935 | -10/Materials | Discovered new exit (range 15) 1986 | -10/Materials | Reached level 5 2235 | -10/Materials | Upgraded with Propulsion slot (x2) 2348 | -10/Materials | Entered Mines 2392 | -10/Mines | Found a damaged Exp. Sensor Array with a note attached 2396 | -10/Mines | Found Prototype Device 2396 | -10/Mines | Identified Exp. Sensor Array 2503 | -10/Mines | Learned location of 1 exit from Materials 2582 | -10/Mines | Discovered new exit (range 5) 2751 | -10/Mines | Assembled infested the area 2756 | -10/Mines | Discovered new exit (range 10) 2756 | -10/Mines | Assisted by a Guerilla fighting off Assembled 3252 | -10/Mines | Build established: Hacker-Skirmisher 3525 | -10/Mines | Entered Materials 3526 | -9/Materials | Identified exit to Mines 3526 | -9/Materials | Core integrity fell below 50% 3527 | -9/Materials | Identified exit to Materials 3527 | -9/Materials | Reached level 6 3537 | -9/Materials | Upgraded with Power slot (x1) 3633 | -9/Materials | Reached level 7 3694 | -9/Materials | Upgraded with Utility slot (x1) 3861 | -9/Materials | Reached level 8 4140 | -9/Materials | Reached level 9 4174 | -9/Materials | Destroyed 8 combat bots 4325 | -9/Materials | First assault squad dispatched 4357 | -9/Materials | Discovered exit to Materials (range 14) 4801 | -9/Materials | Reached level 10 4852 | -9/Materials | Upgraded with Utility slot (x1) 5515 | -9/Materials | Build established: Tank 6036 | -9/Materials | Sterilization system engaged 6036 | -9/Materials | Non-combat units ordered to evacuate 6136 | -9/Materials | Combat units ordered to evacuate 6336 | -9/Materials | Ambient heat levels rising (+10) 6486 | -9/Materials | Ambient heat levels rising (+10) 6514 | -9/Materials | Entered Mines 6516 | -9/Mines | Reached level 11 6582 | -9/Mines | Found a hidden stash of uninstalled traps 6598 | -9/Mines | Joined a pair of Derelicts in attacking an 0b10 outpost 6680 | -9/Mines | Discovered exit to Materials (range 9) 6708 | -9/Mines | Met a Derelict who couldn't figure out how to use a Trap Extractor 6869 | -9/Mines | Escorted by a lone wolf Derelict 6976 | -9/Mines | YI-UF0 nonchalantly dropped a Grenade Launcher on the ground 6985 | -9/Mines | Destroyed YI-UF0 7295 | -9/Mines | Assisted by bots powering up and referring to "LRC-V3" 7334 | -9/Mines | Discovered exit to Materials (range 15) 7387 | -9/Mines | Learned Materials machine intel 7415 | -9/Mines | Learned 8 Materials zone layouts 7436 | -9/Mines | Deemed a non-threat by the Exiles lab entrance 7436 | -9/Mines | Discovered new exit (range 5) 7787 | -9/Mines | Entered Exiles 7787 | -9/Exiles | Accompanied by 4 allies 7788 | -9/Exiles | Identified exit to Mines 7826 | -9/Exiles | Met 8R-AWN 7855 | -9/Exiles | Met EX-HEX 7901 | -9/Exiles | Met EX-BIN 7920 | -9/Exiles | Aligned with FarCom system 7922 | -9/Exiles | Given EX-Vault access code 7959 | -9/Exiles | Opened EX-Vault 7978 | -9/Exiles | Found XL Autogun Array 7984 | -9/Exiles | Found Modified TNC 7989 | -9/Exiles | Found Field Lobotomy Kit 8025 | -9/Exiles | Warned to stay clear of 0b10 Research branches 8067 | -9/Exiles | Met EX-DEC 8196 | -9/Exiles | Discovered exit to Mines (range 15) 8217 | -9/Exiles | Stole three prototypes: Modified TNC, XL Autogun Array, Field Lobotomy Kit 8217 | -9/Exiles | Entered Mines 8217 | -8/Mines | Accompanied by 3 allies 8342 | -8/Mines | Discovered exit to Materials (range 8) 8400 | -8/Mines | Reached level 12 8442 | -8/Mines | Destroyed 7 combat bots 8471 | -8/Mines | Discovered exit to Materials (range 18) 8511 | -8/Mines | Build established: Skirmisher 9536 | -8/Mines | Entered Materials 9536 | -8/Materials | Accompanied by 3 allies 9537 | -8/Materials | Identified exit to Factory 9538 | -8/Materials | Loaded intel: 65 machine locations 9556 | -8/Materials | Reached level 13 9586 | -8/Materials | Upgraded with Utility slot (x1) 9775 | -8/Materials | Identified exit to Garrison 9820 | -8/Materials | Garrison activated, responded to threat 9888 | -8/Materials | Discovered exit to Factory (range 17) 9936 | -8/Materials | First assault squad dispatched 9988 | -8/Materials | Build established: Gunner 10132 | -8/Materials | Destroyed 8 combat bots 10199 | -8/Materials | Reached level 14 10203 | -8/Materials | Upgraded with Power slot (x1) 10283 | -8/Materials | Discovered exit to Factory (range 15) 10299 | -8/Materials | Destroyed 15 combat bots 10615 | -8/Materials | Build established: Scavenger-Tank 10752 | -8/Materials | Central database locked down 10805 | -8/Materials | Sterilization system engaged 10805 | -8/Materials | Non-combat units ordered to evacuate 10810 | -8/Materials | Reached level 15 10825 | -8/Materials | Destroyed 10 combat bots 10905 | -8/Materials | Combat units ordered to evacuate 11105 | -8/Materials | Ambient heat levels rising (+10) 11181 | -8/Materials | Entered Garrison 11181 | -8/Garrison | Accompanied by 1 ally 11281 | -8/Garrison | Triggered checkpoint 11403 | -8/Garrison | Triggered checkpoint 11445 | -8/Garrison | Triggered checkpoint 11446 | -8/Garrison | Destroyed 7 combat bots 11512 | -8/Garrison | Discovered new exit (range 10) 11548 | -8/Garrison | Triggered checkpoint 11562 | -8/Garrison | Garrison Relay disabled 11922 | -8/Garrison | Garrison Relay disabled 12050 | -8/Garrison | Build established: Scavenger-Gunner 12078 | -8/Garrison | Triggered checkpoint 12098 | -8/Garrison | Garrison Relay disabled 12109 | -8/Garrison | Discovered new exit (range 45) 12109 | -8/Garrison | Discovered new exit (range 47) 12109 | -8/Garrison | Discovered new exit (range 13) 12109 | -8/Garrison | Discovered new exit (range 57) 12170 | -8/Garrison | Triggered checkpoint 12518 | -8/Garrison | Garrison Relay disabled 12554 | -8/Garrison | Learned Materials security intel 12721 | -8/Garrison | Triggered checkpoint 12782 | -8/Garrison | Entered Materials 12782 | -8/Materials | Accompanied by 3 allies 12831 | -8/Materials | Reached level 16 12836 | -8/Materials | Upgraded with Utility slot (x1) 13182 | -8/Materials | First assault squad dispatched 13212 | -8/Materials | Destroyed 7 combat bots 13218 | -8/Materials | Discovered exit to Factory (range 13) 13229 | -8/Materials | High security lockdown imminent 13301 | -8/Materials | Destroyed 13 combat bots 13309 | -8/Materials | High security lockdown engaged 13376 | -8/Materials | Destroyed 8 combat bots 13450 | -8/Materials | Sterilization system engaged 13450 | -8/Materials | Non-combat units ordered to evacuate 13500 | -8/Materials | Discovered exit to Factory (range 18) 13517 | -8/Materials | Destroyed 38 combat bots 13550 | -8/Materials | Combat units ordered to evacuate 13750 | -8/Materials | Ambient heat levels rising (+10) 13900 | -8/Materials | Ambient heat levels rising (+10) 13924 | -8/Materials | Discovered exit to Factory (range 15) 14050 | -8/Materials | Ambient heat levels rising (+10) 14125 | -8/Materials | Entered Factory 14127 | -7/Factory | FarCom data flow suspended 14127 | -7/Factory | Reached level 17 14348 | -7/Factory | High security lockdown imminent 14428 | -7/Factory | High security lockdown engaged 14615 | -7/Factory | Reached level 18 14658 | -7/Factory | Destroyed 20 combat bots 14714 | -7/Factory | Destroyed 8 combat bots 14767 | -7/Factory | Destroyed 13 combat bots 14819 | -7/Factory | Discovered new exit (range 4) 14825 | -7/Factory | Identified exit to Factory 14831 | -7/Factory | Destroyed 13 combat bots 14969 | -7/Factory | Destroyed 25 combat bots 14993 | -7/Factory | Discovered new exit (range 18) 14997 | -7/Factory | Reached level 19 15049 | -7/Factory | Destroyed 16 combat bots 15186 | -7/Factory | Garrison activated, responded to threat 15246 | -7/Factory | Sterilization system engaged 15246 | -7/Factory | Non-combat units ordered to evacuate 15309 | -7/Factory | Destroyed 44 combat bots 15346 | -7/Factory | Combat units ordered to evacuate 15415 | -7/Factory | Identified exit to Storage 15546 | -7/Factory | Ambient heat levels rising (+10) 15678 | -7/Factory | Discovered new exit (range 9) 15689 | -7/Factory | Identified exit to Lower Caves 15696 | -7/Factory | Ambient heat levels rising (+10) 15846 | -7/Factory | Ambient heat levels rising (+10) 15996 | -7/Factory | Ambient heat levels rising (+10) 16146 | -7/Factory | Ambient heat levels rising (+10) 16279 | -7/Factory | Entered Lower Caves 16279 | -7/Lower Caves | Spotted 85-QZ0(f) 16280 | -7/Lower Caves | Encountered a Master Thief 16280 | -7/Lower Caves | Field Lobotomy Kit stolen by Master Thief 16282 | -7/Lower Caves | Spotted AQ-J9C(f) 16283 | -7/Lower Caves | Encountered a Master Thief 16287 | -7/Lower Caves | XL Autogun Array stolen by Master Thief 16288 | -7/Lower Caves | Destroyed AQ-J9C(f) 16290 | -7/Lower Caves | Met a Warlord Commander 16291 | -7/Lower Caves | Learned location of Warlord (-4) 16297 | -7/Lower Caves | Found Encrypted Comm Array 16740 | -7/Lower Caves | A Derelict revealed a hidden shortcut to meet someone special 16745 | -7/Lower Caves | Identified exit to Data Miner 16848 | -7/Lower Caves | Discovered new exit (range 10) 16864 | -7/Lower Caves | Identified exit to Lower Caves 16879 | -7/Lower Caves | Learned Factory stockpile data 17450 | -7/Lower Caves | Entered Data Miner 17450 | -7/Data Miner | Discovered new exit (range 6) 17475 | -7/Data Miner | Met Data Miner 17506 | -7/Data Miner | Learned location of Section 7 (-2) 17506 | -7/Data Miner | Acquired the access code to Warlord's prototype stash 17531 | -7/Data Miner | Received God Mode back door access code from Data Miner 17636 | -7/Data Miner | Destroyed Data Miner 17636 | -7/Data Miner | Data Conduit disabled 17643 | -7/Data Miner | Found Prototype Hackware 17722 | -7/Data Miner | Identified Deep Network Scanner 17806 | -7/Data Miner | Entered Proximity Caves 17808 | -6/Proximity Caves | Reached level 20 17966 | -6/Proximity Caves | Build established: Hacker-Gunner 18413 | -6/Proximity Caves | Discovered exit to Factory (range 13) 19357 | -6/Proximity Caves | Attracted the attention of an 0b10 outpost 20121 | -6/Proximity Caves | Entered Factory 20121 | -6/Factory | Accompanied by 2 allies 20294 | -6/Factory | Reached level 21 20405 | -6/Factory | Upgraded with Utility slot (x1) 20715 | -6/Factory | Identified exit to Lower Caves 20715 | -6/Factory | Identified exit to Extension 20821 | -6/Factory | First assault squad dispatched 20870 | -6/Factory | Discovered new exit (range 19) 21083 | -6/Factory | Discovered new exit (range 19) 21286 | -6/Factory | Build established: Hacker-Tank 21388 | -6/Factory | Reached level 22 21389 | -6/Factory | Upgraded with Weapon slot (x1) 21390 | -6/Factory | Destroyed 8 combat bots 21591 | -6/Factory | Destroyed 9 combat bots 21604 | -6/Factory | High security lockdown imminent 21684 | -6/Factory | High security lockdown engaged 21827 | -6/Factory | Destroyed 19 combat bots 22013 | -6/Factory | Garrison activated, responded to threat 22062 | -6/Factory | Core integrity fell below 50% 22067 | -6/Factory | Sterilization system engaged 22067 | -6/Factory | Non-combat units ordered to evacuate 22086 | -6/Factory | Destroyed 47 combat bots 22167 | -6/Factory | Combat units ordered to evacuate 22367 | -6/Factory | Ambient heat levels rising (+10) 22377 | -6/Factory | Reached level 23 22517 | -6/Factory | Ambient heat levels rising (+10) 22667 | -6/Factory | Ambient heat levels rising (+10) 22730 | -6/Factory | Entered Extension 22736 | -6/Extension | Disrupted transfer network 22779 | -6/Extension | High security lockdown imminent 22804 | -6/Extension | Rescued a captive Derelict 22806 | -6/Extension | Rescued a captive Derelict 22859 | -6/Extension | High security lockdown engaged 22910 | -6/Extension | Rescued a captive Derelict 22942 | -6/Extension | Rescued a captive Derelict 22949 | -6/Extension | Rescued a captive Derelict 22958 | -6/Extension | Rescued a captive Derelict 22959 | -6/Extension | Rescued a captive Derelict 23047 | -6/Extension | Destroyed 12 combat bots 23092 | -6/Extension | P-60 Hacker assimilated allied SM-6OI(g) 23157 | -6/Extension | Spotted B-75 Beast 23166 | -6/Extension | Destroyed B-75 Beast 23180 | -6/Extension | Spotted B-75 Beast 23187 | -6/Extension | Destroyed 18 combat bots 23188 | -6/Extension | Destroyed B-75 Beast 23292 | -6/Extension | Destroyed 26 combat bots 23458 | -6/Extension | Destroyed 14 combat bots 23495 | -6/Extension | Destroyed 8 combat bots 23560 | -6/Extension | Destroyed 11 combat bots 23663 | -6/Extension | Core integrity fell below 20% 23665 | -6/Extension | Discovered new exit (range 3) 23666 | -6/Extension | Destroyed by P-60 Hacker with Shock Rifle Last Messages --------------- 23659_ M-28 Smith fits Backup Plating III on C-30 ARC. 23661_ E-15 Imp destroyed. 23661_ Penetrated by Slug. 23661_ Critical hit (Destroy). 23661_ P-60 Hacker resets P-60 Hacker, system corruption cleaned. 23661_ Slug penetrates P-60 Hacker. 23661_ Penetrated by Slug. 23662_ P-60 Hacker destroyed. 23662_ C-30 ARC bursts open, deploying its payload. 23662_ H-66 Slayer unfolds itself. 23662_ I-36 Angel unfolds itself. 23662_ Penetrated by Slug. 23662_ Acquired Adv. Energy Well. 23663_ Penetrated by Slug. 23663_ Acquired 22 matter. 23664_ Penetrated by Slug. 23665_ EXIT=FOUND 23665_ M-28 Smith repairs H-66 Slayer. 23665_ Slug penetrates Reinforced Barrier. 23665_ Penetrated by Slug. Map ----- +----------------------------------------------------+ | ????????# ##=*=%="["##???????????????????????????? | | ????????# ##%=**!%!%[#???????????????????????????? | | ????????# +!!*%!% %=#???????????????????????????? | | ????????###*][==%![%=#???????????????????????????? | | ??????????##%%=[!*[=%#???????????????????????????? | | ???????????#!%*!=%!%[#???????????????????????????? | | ???????????#![![!%=!=#???????????????????????????? | | ???????????######%/=%##??????????????????????????? | | ???????????????##%%==%#???????"#?????????????????? | | ???????????????#=*=!%###?##?? ;??????????????????? | | ???????????????#%%%!%#!## ### ;##### ????????????? | | ???????????????#/*==!%=% ""!""; # ?????????????? | | ???????????????#%[[*%!* *[[ ## ??????????????? | | ???????????????#![=*[%= %%=[= # #??????????????? | | ???????????????#!!*= ! !=! % #?##???????????? | | ??############## =* ==%h#%%###?????????? | | ? *![=!p%%%h% ????????? | | ? %!=hh=m!=%! ????????? | | ? /[!=p%h[%p!g% ????????? | | ? i !!%=h=g!/%h%% ????????? | | ? % =!*!*=!=hh=%g[* ??????????? | | ??############## % ==%*]%%=pg%%###????????????? | | ???????????????# ! !%=%[!%%i*#####????????????? | | ???????????????# %//%*%=!%! #????????????? | | ???????????????# = ! =!##???????????????? | | ???????????????# @ !#????????????????? | | ???????????????###### #"" #######????????????????? | | ????????????????????###?< #??????????????????????? | | ????????????????????????###??????????????????????? | | | | | | | | | | | | | | | | | | | | | | | | | | | | | | | | | | | | | | | | | | | +----------------------------------------------------+ Best States ------------- Heat Dissipation 85 Energy Generation 62 Energy Capacity 925 Matter Stores 300 Matter Capacity 300 Sight Range 19 Robot Scan Range 20 Terrain Scan Range 16 Terrain Scan Density 110 Jamming Range 12 Power Amplification 20 Base Temperature (-) 100 Armor Coverage 825 Resistance: KI 30 Resistance: TH 20 Resistance: EX 25 Weapon Cycling 15 Phase Shifting 5 Evasion (%) 50 Targeting Accuracy 8 Target Analysis 5 Armor Integrity Analysis 30 Recoil Reduction 4 Matter Filtering 30 Particle Charging 25 Kinecelleration 30 Offensive Hacking 45 Defensive Hacking 15 Trap Extractor Capacity 6 Item Schematics ----------------- Hcp. Matter Pod | -9/Materials | Extracted Signal Interpreter | -9/Materials | Extracted Particle Gun | -9/Materials | Extracted Shock Bomb Launcher | -8/Materials | Extracted Weapon Shielding | -8/Materials | Extracted Reactive Plating | -8/Materials | Extracted Hvy. EM Shotgun | -8/Materials | Extracted Lgt. Assault Rifle | -8/Materials | Extracted Maul | -8/Materials | Extracted Adv. Visual Processing Unit | -8/Materials | Extracted Imp. Terrain Scan Processor | -8/Materials | Extracted EM Pulse Cannon | -8/Materials | Extracted Lrn. Tractor Beam | -8/Materials | Extracted Airjet | -8/Materials | Extracted Adv. Weight Redist. System | -8/Materials | Extracted Combat Drone Bay | -7/Data Miner | Free Lgt. Regenerative Plating | -7/Data Miner | Free Biomechanical Wings | -7/Data Miner | Free Gravity Neutralizer | -7/Data Miner | Free Imp. Lightning Gun | -7/Data Miner | Free Antigrav System | -7/Data Miner | Free Imp. Kinecellerator | -7/Data Miner | Free Hyp. Coil Gun | -7/Data Miner | Free Adv. Terrain Scanner | -7/Data Miner | Free Imp. Coolant Injector | -7/Data Miner | Free Imp. Cloaking Device | -7/Data Miner | Free Neutron Cannon | -6/Factory | Scanalyzed Imp. Medium Treads | -6/Factory | Hacked Robot Schematics ------------------ A-15 Conveyor | -7/Data Miner | Free B-48 Gladiator | -7/Data Miner | Free S-27 Virus | -7/Data Miner | Free Fabricated ------------ Nothing Alien Tech Used ----------------- None Achievements -------------- None Challenges ------------ None RPGLIKE | -11 -10 -10 -9 -9 -9 -8 -8 -8 -8 -7 -7 -7 -6 -6 -6 --------- Run | Jun Mat Min Mat Min Exi Min Mat Gar Mat Fac Low Dat Pro Fac Ext Levels Raised 22 | . 4 . 5 1 . 1 3 . 1 3 . . 1 3 . XP Earned 37326 | 3000 6348 661 7948 347 80 1782 3952 1296 1395 4319 231 84 972 3615 1296 XP Spent 35800 | 3000 5900 . 7520 1150 . 1400 4230 . 2300 4450 . . . 4550 1300 Upgrades 56 | 9 7 . 15 2 . 2 6 . 1 8 . . . 4 2 Power Slot 2 | . . . 1 . . . 1 . . . . . . . . Propulsion Slot 3 | . 3 . . . . . . . . . . . . . . Utility Slot 8 | 2 1 . 2 . . . 1 . 1 . . . . 1 . Weapon Slot 4 | 1 2 . . . . . . . . . . . . 1 . Heat Dissipation 10 | . . . 4 . . . 2 . . 4 . . . . . Inventory Capacity 5 | 1 . . 1 . . . 1 . . 2 . . . . . Sight Range 3 | 1 . . . . . 1 . . . 1 . . . . . Terrain Scan Density 1 | 1 . . . . . . . . . . . . . . . Ranged Accuracy 6 | 1 1 . 2 1 . . . . . 1 . . . . . Hack Attack % 2 | 1 . . . . . . 1 . . . . . . . . Hack Defense % 1 | 1 . . . . . . . . . . . . . . . KI Resistance % 2 | . . . 1 . . . . . . . . . . 1 . TH Resistance % 2 | . . . 1 1 . . . . . . . . . . . KI Damage % 4 | . . . 3 . . 1 . . . . . . . . . TH Damage % 3 | . . . . . . . . . . . . . . 1 2 Protomatter Created 10627 | . 310 . 446 93 . 185 584 459 1162 2558 119 87 357 2357 1910 Integrity Restored 9720 | . 730 . 1009 . 65 338 812 162 689 2238 213 83 76 1531 1774 Core 6942 | . 730 . 928 . 65 56 424 120 520 1736 109 6 57 914 1277 Parts 2778 | . . . 81 . . 282 388 42 169 502 104 77 19 617 497 Protomatter Decayed 7311 | . 66 3 107 . . 67 345 463 1000 1745 47 56 329 1776 1307 Game ------ Seed SmartbombSegregatorPod Manual? 1 Play Time 03:09:33 Cumulative 350.7 hours Start 2023.02.20 @ 16:56:32 End 2023.02.20 @ 23:34:49 Sessions 1 Manual Loads 0 Difficulty Rogue Special Mode Winter2019/RPGLIKE Game No. 412 Rogue 412 Adventurer 0 Explorer 0 Win Type - Total 0 Types 0/0/0/0/0/0/0/0/0 Lore% 50 Gallery% 73 Achievement% 61 Wizard Run 0 Options --------- ASCII 0 Keyboard 0 Movement Mouse Keybinds 0 Fullscreen 2 Font 24/Smallcaps Map View 76x50 Tactical HUD 1 Map Filters NONE Filters NONE Steam 1 RUN: 52cdb6c4-8e44-46ce-908c-3f8a21d28aaf